Cogmind - Beta 16 @@@ ROGUE MODE // 2025.11.09 @ 23:07:04 Player: ivnj Result: Destroyed by G-47 Trooper with Particle Gun Performance ------------- Evolutions (2) 1000 Regions Visited (5) 1000 Robots Destroyed (25) 125 Value Destroyed (926) 926 Prototype IDs (2) 40 Alien Tech Used (0) 0 Bonus (0) 0 TOTAL SCORE: 3091 Bonus ------- None Cogmind --------- Core Integrity 0/550 Matter 260/300 Energy 100/100 System Corruption 0% Temperature Cool (9) Movement Core (350) Ox6 Location -8/Materials Parts ------- > --- POWER (1) -------- (None) > --- PROPULSION (3) --- (None) > --- UTILITY (5) ------ Large Storage Unit Advanced Visual Processing Unit Targeting Computer > --- WEAPON (2) ------- (None) > --- INVENTORY (15) --- Light Ion Engine Heat Sink Huge Storage Unit Improved Terrain Scanner Targeting Computer Light Armor Plating Hardened Light Armor Plating Peak State ------------ > --- POWER ------------ Improved Ion Engine > --- PROPULSION ------- Aluminum Leg Aluminum Leg Aluminum Leg > --- UTILITY ---------- Large Storage Unit Advanced Visual Processing Unit Sensor Array Targeting Computer Hardened Light Armor Plating > --- WEAPON ----------- Gauss Rifle Makeshift Sword > --- INVENTORY -------- Ion Engine Light Treads Light Treads Aluminum Leg Aluminum Leg Titanium Leg Heat Sink Huge Storage Unit Improved Terrain Scanner Targeting Computer Light Armor Plating Hardened Light Armor Plating Flak Gun Flak Gun Grenade Launcher [Rating: 23] Favorites ----------- Power Ion Engine Engine Ion Engine Propulsion Light Treads Treads Light Treads Leg Aluminum Leg Utility Targeting Computer Device Sensor Array Storage Large Storage Unit Processor Targeting Computer Protection Hardened Light Armor Plating Weapon Medium Laser Energy Gun Medium Laser Ballistic Gun Assault Rifle Launcher Grenade Launcher Slashing Weapon Makeshift Sword Build | -11 -10 -10 -10 -9 -8 ------- Run | Yrd Mat Min Exi Min Mat Slots Evolved 4 | . . . . . 4 Power . | . . . . . . Propulsion 1 | . . . . . 1 Utility 3 | . . . . . 3 Weapon . | . . . . . . Parts Attached 34 | 6 6 . . 3 19 Power 5 | 1 1 . . 2 1 Engine 5 | 1 1 . . 2 1 Core . | . . . . . . Reactor . | . . . . . . Propulsion 11 | 2 1 . . . 8 Treads 4 | 2 1 . . . 1 Leg 7 | . . . . . 7 Wheel . | . . . . . . Hover . | . . . . . . Flight . | . . . . . . Utility 7 | 1 2 . . . 4 Device 1 | . . . . . 1 Storage 2 | 1 1 . . . . Processor 3 | . 1 . . . 2 Hackware . | . . . . . . Protection 1 | . . . . . 1 Artifact . | . . . . . . Weapon 11 | 2 2 . . 1 6 Energy Gun 4 | 2 1 . . . 1 Energy Cannon . | . . . . . . Ballistic Gun 4 | . . . . 1 3 Ballistic Cannon . | . . . . . . Launcher 2 | . 1 . . . 1 Special Weapon . | . . . . . . Impact Weapon . | . . . . . . Slashing Weapon 1 | . . . . . 1 Piercing Weapon . | . . . . . . Special Melee Weapon . | . . . . . . Unidentified Prototypes . | . . . . . . Parts Lost 21 | . . . . 1 20 Power 3 | . . . . 1 2 Propulsion 9 | . . . . . 9 Utility 2 | . . . . . 2 Weapon 7 | . . . . . 7 Highest Loss Streak 9 | . . . . 1 9 To Critical Strikes . | . . . . . . Average Backups 13 | 2 11 15 15 14 12 Power . | . 1 1 1 1 . Propulsion 2 | 1 2 3 3 3 3 Utility 6 | . 4 8 8 7 5 Weapon 2 | . 2 3 3 3 2 Tool/Special . | . . . . . . Unused Backups 13 | . 3 . . 1 9 Power 1 | . . . . . 1 Propulsion 1 | . . . . . 1 Utility 10 | . 2 . . 1 7 Weapon 1 | . 1 . . . . Tool/Special . | . . . . . . Average Slot Usage (%) 98 | . 99 100 100 99 94 Engine 12 | . 14 14 14 13 8 Treads 24 | . 28 28 28 28 8 Leg 3 | . . . . . 16 Device 1 | . . . . . 8 Storage 12 | . 14 14 14 14 9 Processor 14 | . 13 14 14 14 17 Protection 1 | . . . . . 7 Energy Gun 18 | . 27 28 28 14 3 Ballistic Gun 5 | . . . . 13 4 Slashing Weapon 1 | . . . . . 5 Peak Build Rating 23 | 6 8 8 8 10 23 Average Rating 10 | 5 7 8 8 9 18 On Entrance 6 | . 6 8 8 8 10 Avg Prop Armor Cover (%) 8 | . . . . . 8 Naked Turns . | . . . . . . Heaviest Build 39 | 14 29 29 29 31 39 Greatest Support 60 | 40 40 40 40 40 60 Greatest Overweight (x) 10 | 3 . . . . 10 Average Overweight (x) . | . . . . . . Largest Inventory Capacity 15 | 8 15 15 15 15 15 Average Capacity 14 | 7 12 15 15 15 15 Most Carried 15 | 4 15 15 15 15 15 Average Carried 13 | 2 11 15 15 14 12 Final Capacity 15 | 8 15 15 15 15 15 Final Carried 15 | 4 15 15 15 15 7 Class Distribution -------------------- 99% | Mutant Dominant Class ---------------- Mutant | -10/Materials Mutant | -10/Mines Mutant | -10/Exiles Mutant | -9/Mines Mutant | -8/Materials Resources | -11 -10 -10 -10 -9 -8 ----------- Run | Yrd Mat Min Exi Min Mat Matter Collected 633 | 217 133 . . 24 259 Remotely . | . . . . . . Salvage Created 839 | . 247 . . 79 513 Parts 51 | . 20 . . 4 27 Haulers Intercepted . | . . . . . . Recyclers Shooed . | . . . . . . Parts Field Recycled . | . . . . . . Retrieved Matter . | . . . . . . Parts Self-Destructed . | . . . . . . Prevented . | . . . . . . Parts Restored . | . . . . . . Kills | -11 -10 -10 -10 -9 -8 ------- Run | Yrd Mat Min Exi Min Mat Combat Hostiles Destroyed 24 | . 8 . . 2 14 Melee 9 | . . . . . 9 Guns 8 | . 5 . . 2 1 AOE 7 | . 3 . . . 4 Classes Destroyed 6 | . 3 . . 1 2 Worker 1 | . 1 . . . . Swarmer 6 | . 3 . . . 3 Grunt 14 | . 5 . . 1 8 Duelist 1 | . . . . 1 . Sentry 2 | . . . . . 2 Hunter 1 | . . . . . 1 Best Kill Streak 4 | . 4 . . 2 4 Combat Bots Only 4 | . 4 . . 2 4 Max Kills in Single Turn 2 | . 1 . . 1 2 Gunslinging . | . . . . . . Exploded 2 | . 1 . . . 2 Melee 1 | . . . . . 1 Uniques/NPCs Destroyed . | . . . . . . Combat | -11 -10 -10 -10 -9 -8 -------- Run | Yrd Mat Min Exi Min Mat Hostile Shots Fired 287 | . 53 . . 8 226 Missed 84 | . 18 . . 2 64 Hits 203 | . 35 . . 6 162 Melee 9 | . . . . 5 4 Projectile 194 | . 35 . . 1 158 Critical Strikes 7 | . . . . . 7 Damage Taken 2980 | . 390 . . 165 2425 Core 668 | . 56 . . 46 566 Absorbed by Shields . | . . . . . . Core Remaining (%) 79 | 100 . . . 59 . Volleys Fired 47 | 1 23 . 1 7 15 Largest 2 | 2 2 . 2 2 2 Hottest 100 | 100 100 . 90 90 60 Shots Fired 81 | 2 43 . 2 14 20 Gun 72 | 2 40 . 2 14 14 Cannon . | . . . . . . Launcher 9 | . 3 . . . 6 Special . | . . . . . . Kinetic 11 | . . . . 3 8 Thermal 36 | 2 25 . 1 7 1 Explosive 9 | . 3 . . . 6 Electromagnetic 25 | . 15 . 1 4 5 Robot Hit Streak 11 | . 4 . . 7 11 Robot Miss Streak 5 | 2 5 . . 1 3 Penetration Max . | . . . . . . Secondary Targets 1 | . 1 . . . . Max Gunslinging Chain 1 | . 1 . . . . Shots Hit Robots 68 | . 14 . . 12 42 Core Hits 49 | . 13 . . 5 31 Critical Kills . | . . . . . . Critical Parts Destroyed . | . . . . . . Critical Strikes 3 | . . . . . 3 Sever 3 | . . . . . 3 Melee Attacks 51 | . . . . . 51 Impact . | . . . . . . Slashing 51 | . . . . . 51 Piercing . | . . . . . . Sneak Attacks . | . . . . . . Combat Hostiles . | . . . . . . Follow-up Attacks . | . . . . . . Damage Inflicted 2287 | . 434 . . 143 1710 Guns 414 | . 186 . . 143 85 Cannons . | . . . . . . Explosions 785 | . 248 . . . 537 Melee 1088 | . . . . . 1088 Ramming . | . . . . . . Kinetic 84 | . . . . 36 48 Thermal 344 | . 133 . . 63 148 Explosive 608 | . 214 . . . 394 Electromagnetic 163 | . 87 . . 44 32 Impact . | . . . . . . Slashing 1088 | . . . . . 1088 Piercing . | . . . . . . Highest Corruption . | . . . . . . Average Corruption . | . . . . . . Corruption Purged . | . . . . . . Corruption Blocked . | . . . . . . Overload Shots . | . . . . . . Overflow Damage 112 | . . . . . 112 Projectiles . | . . . . . . Explosions 57 | . . . . . 57 Melee 55 | . . . . . 55 Knockbacks . | . . . . . . Impact . | . . . . . . Kinetic . | . . . . . . Secondary . | . . . . . . Self-Inflicted Damage 136 | . 42 . . . 94 Shots 5 | . 3 . . . 2 Rammed . | . . . . . . Targets Rammed . | . . . . . . Kicked . | . . . . . . Crushed . | . . . . . . Highest Temperature 162 | 39 162 . 30 120 19 Average Temperature 53 | 20 60 . 18 70 8 Received Heat Transfer 1122 | . 162 . . 6 954 Siege Activations . | . . . . . . Martial Activations . | . . . . . . Shielding Activations . | . . . . . . Robots Disrupted . | . . . . . . Combat Hostiles . | . . . . . . Robots Corrupted . | . . . . . . Combat Hostiles . | . . . . . . Parts Fried . | . . . . . . Impact Corruptions . | . . . . . . Robots Melted . | . . . . . . Combat Hostiles . | . . . . . . Parts Melted 2 | . 1 . . . 1 Heat Transferred 718 | . 346 . . 185 187 Parts Sabotaged . | . . . . . . Parts Stolen . | . . . . . . Parts Stripped . | . . . . . . Power Chain Reactions 1 | . 1 . . . . Alert | -11 -10 -10 -10 -9 -8 ------- Run | Yrd Mat Min Exi Min Mat Maximum Alert Level . | . . . . . . Low Security (%) 100 | 100 100 100 . 100 100 Level 1 . | . . . . . . Level 2 . | . . . . . . Level 3 . | . . . . . . Level 4 . | . . . . . . Level 5 . | . . . . . . High Security . | . . . . . . Max Security . | . . . . . . Peak Influence 173 | . 165 14 . 50 173 Initial 14 | . . 14 . . . Average 26 | . 60 1 . 1 53 Influence Increases 921 | . 307 . . 50 564 Destroy 0b10 Robot/C 480 | . 160 . . 40 280 Destroy 0b10 Robot/NC 5 | . 5 . . . . Destroy Leader 120 | . 40 . . 10 70 Disable Machine 135 | . 45 . . . 90 Destroy Structure 76 | . 12 . . . 64 Partial Spotted 15 | . . . . . 15 Lose Combat Pursuer 90 | . 45 . . . 45 Influence Decreases 781 | . 270 37 . 50 424 Entered New Map 23 | . . 23 . . . Time Decay 588 | . 270 14 . 50 254 Lost Part 170 | . . . . . 170 Squads Dispatched 10 | . 3 . . . 7 Investigation 3 | . 2 . . . 1 Extermination . | . . . . . . Reinforcement 4 | . 1 . . . 3 Assault . | . . . . . . Garrison 3 | . . . . . 3 Intercept . | . . . . . . Searches Triggered . | . . . . . . Construction Impeded 1 | . . . . . 1 Haulers Reinforced . | . . . . . . Active Scanning Responses . | . . . . . . Cargo Convoy Interrupts . | . . . . . . Stealth | -11 -10 -10 -10 -9 -8 --------- Run | Yrd Mat Min Exi Min Mat Distress Signals 1 | . . . . . 1 Communications Jammed . | . . . . . . Distress Signals . | . . . . . . Times Spotted 51 | . 18 . . 2 31 Peak Tracking Total 8 | . 5 . . 2 8 Tactical Retreats 3 | . 1 . . . 2 Traps | -11 -10 -10 -10 -9 -8 ------- Run | Yrd Mat Min Exi Min Mat Traps Triggered 3 | . 2 . . . 1 Indirectly 1 | . . . . . 1 Trap Hack Attempts . | . . . . . . Triggered . | . . . . . . Disarmed . | . . . . . . Reprogrammed . | . . . . . . Reused . | . . . . . . Traps Extracted . | . . . . . . Installed . | . . . . . . Triggered . | . . . . . . Machines | -11 -10 -10 -10 -9 -8 ---------- Run | Yrd Mat Min Exi Min Mat Machines Disabled 10 | . 3 . 1 . 6 Max in Single Turn 2 | . 1 . 1 . 2 Machines Repaired . | . . . . . . Machines Dismantled . | . . . . . . Machines Sabotaged . | . . . . . . Overloaded Fab Kills . | . . . . . . Hacking | -11 -10 -10 -10 -9 -8 --------- Run | Yrd Mat Min Exi Min Mat Machines Accessed 9 | . 3 . 4 . 2 Terminals 4 | . 3 . . . 1 Fabricators . | . . . . . . Repair Stations . | . . . . . . Recycling Units . | . . . . . . Scanalyzers 1 | . . . . . 1 Garrison Access . | . . . . . . Total Hacks 57 | . 4 . 49 . 4 Successful 55 | . 3 . 49 . 3 Failed 2 | . 1 . . . 1 Catastrophic 2 | . 1 . . . 1 Database Lockouts . | . . . . . . Manual 2 | . 1 . . . 1 Terminals 7 | . 4 . . . 3 Fabricators . | . . . . . . Repair Stations . | . . . . . . Recycling Units . | . . . . . . Scanalyzers 1 | . . . . . 1 Garrison Access . | . . . . . . Terminal Hacks 55 | . 3 . 49 . 3 Record 52 | . 1 . 49 . 2 Prototype ID Bank 1 | . 1 . . . . Alert Level 1 | . 1 . . . . Zone Layout 1 | . . . . . 1 Fabricator Hacks . | . . . . . . Repair Station Hacks . | . . . . . . Recycling Unit Hacks . | . . . . . . Scanalyzer . | . . . . . . Garrison Access Hacks . | . . . . . . Unauthorized Hacks . | . . . . . . Terminals . | . . . . . . Fabricators . | . . . . . . Repair Stations . | . . . . . . Recycling Units . | . . . . . . Scanalyzers . | . . . . . . Garrison Access . | . . . . . . Data Cores Recovered . | . . . . . . Used . | . . . . . . Hacking Detections 3 | . 2 . . . 1 Full Trace Events 1 | . . . . . 1 Feedback Events . | . . . . . . Feedback Blocked . | . . . . . . Robot Schematics Acquired . | . . . . . . Robots Built . | . . . . . . Authchips . | . . . . . . Time . | . . . . . . Total Robot Build Rating . | . . . . . . Part Schematics Acquired . | . . . . . . Parts Built . | . . . . . . Authchips . | . . . . . . Time . | . . . . . . Total Part Build Rating . | . . . . . . Part Studies Acquired . | . . . . . . Parts Repaired . | . . . . . . Time . | . . . . . . Parts Recycled . | . . . . . . Recycled Matter . | . . . . . . Retrieved Matter . | . . . . . . Retrieved Components . | . . . . . . Parts Scanalyzed . | . . . . . . Part Schematics Acquired . | . . . . . . Parts Damaged . | . . . . . . Bothacking | -11 -10 -10 -10 -9 -8 ------------ Run | Yrd Mat Min Exi Min Mat Used RIF Installer . | . . . . . . Robots Hacked . | . . . . . . Non-combat . | . . . . . . Combat . | . . . . . . Robot Hacks Applied . | . . . . . . Relay Couplers Released . | . . . . . . Fabnet Peak Effective % . | . . . . . . Robots Rewired . | . . . . . . Allies Hacked . | . . . . . . Hacks Repelled . | . . . . . . Allies | -11 -10 -10 -10 -9 -8 -------- Run | Yrd Mat Min Exi Min Mat Total Allies . | . . . . . . Largest Group . | . . . . . . Highest-Rated Group . | . . . . . . Highest-Rated Ally . | . . . . . . Total Orders . | . . . . . . Ally Attacks . | . . . . . . Total Damage . | . . . . . . Kills . | . . . . . . Allies Corrupted . | . . . . . . Allies Melted . | . . . . . . Intel | -11 -10 -10 -10 -9 -8 ------- Run | Yrd Mat Min Exi Min Mat Active Infowar (turns) 873 | . . . . . 873 Optics 873 | . . . . . 873 Sensors 869 | . . . . . 869 Robot Analysis Total . | . . . . . . Derelict Logs Recovered 1 | . . . . 1 . Drone Launches . | . . . . . . Drone Recoveries . | . . . . . . Exploration | -11 -10 -10 -10 -9 -8 ------------- Run | Yrd Mat Min Exi Min Mat Turns Passed 4467 | 156 765 312 911 1449 874 Spaces Moved 2053 | 93 370 196 566 493 335 Core 17 | 12 . . . . 5 Treads 1844 | 81 370 196 566 493 138 Legs 192 | . . . . . 192 Wheels . | . . . . . . Hover . | . . . . . . Flight . | . . . . . . Fastest Speed 50 | 50 160 160 160 160 120 Average Speed 163 | 151 160 160 160 160 186 Slowest Speed 550 | 200 160 160 160 160 550 Overloaded Moves . | . . . . . . Propulsion Burnouts . | . . . . . . Robots Hopped . | . . . . . . Potential Cave-ins . | . . . . . . Cave-ins Triggered . | . . . . . . Exploration Rate (%) 52 | 5 59 59 72 94 25 Regions Visited 5 Branch Regions 3 Pre-discovered Areas 1 | . . . 1 . . Known Exits Taken . | . . . . . . Unknown Exits Taken 5 | 1 1 1 1 1 . Scrap Searched 1 | . . 1 . . . Spaces Dug . | . . . . . . Terrain Destroyed 78 | . 14 . . . 64 Melee . | . . . . . . Projectile . | . . . . . . AOE 78 | . 14 . . . 64 Terrain Rammed . | . . . . . . Walls Destroyed . | . . . . . . Machines Disabled . | . . . . . . Actions | -11 -10 -10 -10 -9 -8 --------- Run | Yrd Mat Min Exi Min Mat Total 3022 | 104 501 195 570 1141 511 Wait 782 | . 85 . . 632 65 Move 2048 | 92 369 195 565 492 335 Hop . | . . . . . . Pick Up 32 | 5 13 . . 3 11 Fast Attach 9 | 5 1 . . 1 2 Attach 17 | 1 . . . . 16 Detach . | . . . . . . Swap 18 | . 5 . . 2 11 Drop 14 | . 5 . . 4 5 Fire 47 | 1 23 . 1 7 15 Melee 51 | . . . . . 51 Ram . | . . . . . . Kick . | . . . . . . Crush . | . . . . . . Escape Stasis . | . . . . . . Rewire 4 | . . . 4 . . Trap . | . . . . . . Miscellaneous . | . . . . . . Route ------- -11/Scrapyard -10/Materials (discovered 3 exits: [*Mat x2] / [*Min]) -10/Mines (discovered 2 exits: [*Mat] / *Exi) -10/Exiles (discovered 2 exits: [*Min x2]) -9/Mines (discovered 2 exits: *Mat x2) -8/Materials History --------- Turn | Location | Event 24 | -11/Scrapyard | Discovered new exit (range 15) 157 | -11/Scrapyard | Entered Materials 311 | -10/Materials | Build established: Mutant 556 | -10/Materials | Discovered new exit (range 9) 822 | -10/Materials | Discovered new exit (range 10) 891 | -10/Materials | Discovered new exit (range 12) 922 | -10/Materials | Entered Mines 1057 | -10/Mines | Discovered new exit (range 11) 1223 | -10/Mines | Deemed a non-threat by the Exiles lab entrance 1225 | -10/Mines | Discovered new exit (range 5) 1234 | -10/Mines | Entered Exiles 1257 | -10/Exiles | Discovered new exit (range 15) 1273 | -10/Exiles | Met 8R-AWN 1444 | -10/Exiles | Met EX-HEX 1557 | -10/Exiles | Met EX-DEC 1605 | -10/Exiles | Learned location of Zion (-7) 1684 | -10/Exiles | Discovered new exit (range 10) 1831 | -10/Exiles | Met EX-BIN 2145 | -10/Exiles | Entered Mines 2311 | -9/Mines | YI-UF0 nonchalantly dropped a Grenade Launcher on the ground 2579 | -9/Mines | Discovered new exit (range 4) 2622 | -9/Mines | Discovered new exit (range 5) 3383 | -9/Mines | A weapon hastily lodged in a ceiling crevice suddenly fell to the ground 3594 | -9/Mines | Entered Materials 3594 | -8/Materials | Evolved 4 slots: Propulsion x1, Utility x3 4346 | -8/Materials | Core integrity fell below 50% 4390 | -8/Materials | Lost 9 parts (1p6n1u1w) 4461 | -8/Materials | Core integrity fell below 20% 4468 | -8/Materials | Destroyed by G-47 Trooper with Particle Gun Last Messages --------------- 04435_ U-05 Engineer builds a Wall. 04435_ U-05 Engineer lays Concrete. 04436_ Ion Engine destroyed. 04436_ U-05 Engineer builds a Door. 04438_ U-05 Engineer builds a Wall. 04439_ Critical hit (Burn: +37). 04441_ U-05 Engineer lays Concrete. 04442_ U-05 Engineer builds a Wall. 04442_ U-05 Engineer lays Concrete. 04443_ U-05 Engineer builds a Wall. 04444_ U-05 Engineer lays Concrete. 04448_ K-01 Serf collects debris. 04458_ Grenade Launcher destroyed. 04458_ Destroyed Grenade Launcher. 04459_ Titanium Leg severed. 04459_ Mak. Sword destroyed. 04460_ Lgt. Treads destroyed. 04464_ Flak Gun severed. 04465_ Sensor Array destroyed. 04465_ Critical hit (Burn: +37). Map ----- +----------------------------------------------------+ | ?????????????????????????????????????????????????? | | ?????????????????????????????????????????????????? | | ?????????????????????????????????????????????????? | | ?????????????????????????????????????????????????? | | ?????????????????????????????????????????????????? | | ???? ???????????????????????????????????????????? | | ???? ???????????????????????????????????????????? | | ???? ???????????????????????????????????????????? | | ???? ???????????????????????????????????????????? | | ??? #??????????????????????????????????????????? | | """ #??????????????????????????????????????????? | | """ #??????#####???????????????????????????????? | | """ #??????? ??????#????????????????????????? | | #??????? ???##Y###?????????????????????? | | #????????" ??# ?????????????????????? | | = #????????? ?#""" ?????????????????????? | | %* #?????????? ?#""" ??????????????????????? | | #??????????? #""" ??????????????????????? | | ????????????? # ??????????????????????? | | ?????????????? # ??????????????????????? | | ?????#######+## ######?????????????????? | | ?????? k ??????????????????? | | ?# ########?# a ???????????????????? | | ?# ! # #???? ????????????????????? | | ?# % # * #???????# g #?????####????????????? | | ?# %+ % "" #???????## @#?????? #????????????? | | ?# !#* """ #???????# l[#?????? /??????####??? | | ?# # """ #???????# = #???????" #????? #??? | | ?# # #???????## g #???????T #?????" #??? | | # ####+###????????# g ##???????" #?????" #??? | | # #??# #?????????## g##??????? #?????" #??? | | # ####+#####?????# g #########+#????? #??? | | + # #?????# #???? #### | | # # """ #?????# #####+#### ## | | # # """ #?????# %[ | | # # """ #?????# ##" #/###### | | # # #?????######" "" ! == | | ## + """ #??????????#"! "" == | | ?# # """ #?????????# " "# = | | ?# # """ #?????????# " "# = | | ?# # #?????????##" "# % [ %= | | ?# ######+###??????????#" "# ####" " | | ?# #### #?????????? " % "# #??#"G"# | | ?# #?????????##" ## #????? # | | ?# T ############"##""""""### #??????# | | ?# #?# ######## | | ?######## #?# #!! [!!# | | ########## ###############/#+## #?# #!! [!!# | | # # """" ## = # ### # [ # | | """ """ # # ""S"" ## ] # # [ ### | +----------------------------------------------------+ Best States ------------- Heat Dissipation 31 Energy Generation 12 Energy Capacity 265 Matter Stores 300 Matter Capacity 300 Sight Range 20 Robot Scan Range 14 Terrain Scan Density 10 Armor Coverage 150 Evasion (%) 40 Targeting Accuracy 5 Recoil Reduction 3 Item Schematics ----------------- None Robot Schematics ------------------ None Fabricated ------------ Nothing Repaired ---------- Nothing Studied --------- None Alien Tech Used ----------------- None Achievements -------------- Librarian Spot Them First Challenges ------------ None Game ------ Seed SlugBottomlessFacilitator Manual? 0 Play Time 00:59:26 Cumulative 6.1 hours Start 2025.11.09 @ 21:46:25 End 2025.11.09 @ 23:07:04 Sessions 1 Manual Loads 0 Difficulty Rogue Special Mode None Game No. 5 Rogue 5 Adventurer 0 Explorer 0 Win Type - Total 0 Types 0/0/0/0/0/0/0/0/0/0 Lore% 5 Gallery% 7 Achievement% 8 Wizard Run 0 Options --------- Layout 0 ASCII 0 Keyboard 1 Movement Numpad Keybinds 1 Fullscreen 2 Font 24/Proggy Map View 76x50 Zoom Use 0% Tactical HUD 1 Map Filters NONE Filters NONE Steam 0 RUN: 9fa7345b-add0-4bb4-8d4e-f3365f974583